[Event "CZE-ch Open 2019"]
[Site "Ostrava"]
[Date "2019.05.02"]
[Round "6.5"]
[White "Zwardon, Vojtech"]
[Black "Michalik, Peter"]
[Result "1/2-1/2"]
[ECO "D31"]
[WhiteElo "2458"]
[BlackElo "2577"]
[Annotator "ChessBase"]
[PlyCount "64"]
[EventDate "2019.04.27"]
[EventType "swiss"]
[EventCountry "CZE"]
[SourceTitle "playchess.com"]
[Source "ChessBase"]
[SourceQuality "1"]
[TimeControl "40/5400+30:1800+30"]

1. c4 {[%emt 0:02:07]} e6 {[%emt 0:00:00]} 2. Nc3 {[%emt 0:00:06]} d5 {[%emt 0:00:00]} 3. d4 {[%emt 0:00:02]} Be7 {[%emt 0:00:00]} 4. cxd5 {[%emt 0:00:18]} exd5 {[%emt 0:00:00]} 5. Bf4 {[%emt 0:00:03]} c6 {[%emt 0:00:12]} 6. e3 {[%emt 0:00:02]} Bf5 {[%emt 0:00:09]} 7. Bd3 {[%emt 0:00:05]} Bxd3 {[%emt 0:00:13]} 8. Qxd3 {[%emt 0:00:02]} Nf6 {[%emt 0:00:09]} 9. Nf3 {[%emt 0:00:13]} Nbd7 {[%emt 0:00:31]} 10. Rb1 {[%emt 0:01:42]} a5 {[%emt 0:02:06]} 11. O-O {[%emt 0:00:12]} Nh5 {[%emt 0:01:49]} 12. Be5 {[%emt 0:00:58]} O-O {[%emt 0:00:21]} 13. h3 {[%emt 0:02:13]} Nxe5 {[%emt 0:01:40]} 14. dxe5 {[%emt 0:09:30]} g6 {[%emt 0:00:06]} 15. Rfd1 {[%emt 0:06:14]} Qb6 {[%emt 0:04:49]} 16. e4 {[%emt 0:09:12]} dxe4 {[%emt 0:00:43]} 17. Nxe4 {[%emt 0:06:11]} Rad8 {[%emt 0:02:09]} 18. Qc4 {[%emt 0:02:23]} Qb4 {[%emt 0:01:38]} 19. b3 {[%emt 0:04:43]} Nf4 {[%emt 0:03:14]} 20. a4 {[%emt 0:05:24]} Kg7 {[%emt 0:11:23]} 21. g3 {[%emt 0:07:07]} Ne6 {[%emt 0:00:23]} 22. Kg2 {[%emt 0:01:36]} Qxc4 {[%emt 0:17:17]} 23. bxc4 {[%emt 0:00:12]} Rxd1 {[%emt 0:00:04]} 24. Rxd1 {[%emt 0:00:08]} Rb8 {[%emt 0:00:02]} 25. Nd4 {[%emt 0:12:35]} Nxd4 {[%emt 0:04:59]} 26. Rxd4 {[%emt 0:00:04]} b5 {[%emt 0:00:03]} 27. Rd7 {[%emt 0:02:49]} Kf8 {[%emt 0:00:04]} 28. cxb5 {[%emt 0:00:37]} cxb5 {[%emt 0:00:05]} 29. axb5 {[%emt 0:03:10]} Rxb5 {[%emt 0:00:10]} 30. f4 {[%emt 0:00:07]} Rb2+ {[%emt 0:01:13]} 31. Kf3 {[%emt 0:00:16]} Rb3+ {[%emt 0:00:04]} 32. Kg2 {[%emt 0:00:10]} Rb2+ {[%emt 0:14:46]} 1/2-1/2

[Event "CZE-ch Open 2019"]
[Site "Ostrava"]
[Date "2019.05.02"]
[Round "6.9"]
[White "Nguyen, Thai Dai Van"]
[Black "Hausner, Ivan"]
[Result "0-1"]
[ECO "B29"]
[WhiteElo "2547"]
[BlackElo "2349"]
[Annotator "RC"]
[PlyCount "80"]
[EventDate "2019.04.27"]
[EventType "swiss"]
[EventCountry "CZE"]
[SourceTitle "playchess.com"]
[Source "ChessBase"]
[SourceQuality "1"]
[TimeControl "40/5400+30:1800+30"]

1. e4 c5 2. Nf3 Nf6 3. e5 Nd5 4. Nc3 e6 5. Nxd5 exd5 6. d4 Nc6 7. dxc5 Bxc5 8. Qxd5 d6 9. exd6 Qb6 10. Qe4+ Be6 11. Qh4 O-O 12. Bd3 Qb4+ 13. c3 Qxh4 14. Nxh4 Rad8 15. O-O Bxd6 16. Be2 f5 17. Nf3 h6 18. Rd1 Rfe8 19. Kf1 f4 20. b3 g5 21. h3 Be7 22. Bb2 Bf6 23. Ne1 Nb4 24. Nd3 f3 25. gxf3 Bxh3+ 26. Kg1 Nc2 27. Nf4 gxf4 28. Bc4+ Be6 29. Rxd8 Bxd8 30. Bb5 Nxa1 31. Bxe8 Nxb3 32. axb3 Bxb3 33. Ba3 Bc7 34. Bc5 b6 35. Bd4 Bc4 36. Kg2 a5 37. Kh3 Be6+ 38. Kg2 Bc4 39. Kh3 b5 40. Kg4 Be6+ 0-1

[Event "CZE-ch Open 2019"]
[Site "Ostrava"]
[Date "2019.05.02"]
[Round "6.10"]
[White "Rubes, Jan"]
[Black "Biolek, Richard Jr."]
[Result "1/2-1/2"]
[ECO "B73"]
[WhiteElo "2345"]
[BlackElo "2442"]
[Annotator "NA"]
[PlyCount "61"]
[EventDate "2019.04.27"]
[EventType "swiss"]
[EventCountry "CZE"]
[SourceTitle "playchess.com"]
[Source "ChessBase"]
[SourceQuality "1"]
[TimeControl "40/5400+30:1800+30"]

1. e4 {[%emt 0:00:00]} c5 {[%emt 0:01:56]} 2. Nf3 {[%emt 0:00:00]} d6 {[%emt 0:00:06]} 3. d4 {[%emt 0:00:00]} cxd4 {[%emt 0:00:04]} 4. Nxd4 {[%emt 0:00:36]} Nf6 {[%emt 0:00:05]} 5. Nc3 {[%emt 0:00:05]} g6 {[%emt 0:00:07]} 6. Be2 {[%emt 0:01:21]} Bg7 {[%emt 0:00:25]} 7. O-O {[%emt 0:00:14]} O-O {[%emt 0:00:14]} 8. Be3 {[%emt 0:00:09]} Nc6 {[%emt 0:00:12]} 9. Qd2 {[%emt 0:00:07]} d5 {[%emt 0:00:29]} 10. Rfd1 {[%emt 0:00:12]} Nxd4 {[%emt 0:51:06]} 11. Qxd4 {[%emt 0:00:16]} Nxe4 {[%emt 0:00:52]} 12. Qxd5 {[%emt 0:00:28]} Nd6 {[%emt 0:02:09]} 13. Bf3 {[%emt 0:48:51]} Be6 {[%emt 0:09:02]} 14. Qc5 {[%emt 0:00:41]} Qc8 {[%emt 0:00:05]} 15. Nd5 {[%emt 0:02:27]} Bxd5 {[%emt 0:00:10]} 16. Bxd5 {[%emt 0:00:47]} Bxb2 {[%emt 0:06:49]} 17. Rab1 {[%emt 0:00:04]} Bf6 {[%emt 0:00:54]} 18. h3 {[%emt 0:11:14]} Rd8 {[%emt 0:03:10]} 19. Qxc8 {[%emt 0:08:55]} Raxc8 {[%emt 0:00:16]} 20. Bxa7 {[%emt 0:00:09]} Rxc2 {[%emt 0:00:27]} 21. Bb3 {[%emt 0:02:11]} Rc3 {[%emt 0:07:20]} 22. Rdc1 {[%emt 0:03:17]} Rdc8 {[%emt 0:00:41]} 23. Rxc3 {[%emt 0:00:05]} Rxc3 {[%emt 0:00:03]} 24. Bb8 {[%emt 0:00:36]} Bd4 {[%emt 0:04:13]} 25. Bxd6 {[%emt 0:03:30]} exd6 {[%emt 0:00:04]} 26. Rd1 {[%emt 0:01:11]} Be5 {[%emt 0:01:42]} 27. Kf1 {[%emt 0:01:39]} Kf8 {[%emt 0:00:13]} 28. Ke2 {[%emt 0:00:22]} f5 {[%emt 0:01:40]} 29. Rd5 {[%emt 0:00:32]} Rc5 {[%emt 0:00:42]} 30. Rxc5 {[%emt 0:05:09]} dxc5 {[%emt 0:00:04]} 31. a4 {[%emt 0:00:04]} 1/2-1/2

[Event "CZE-ch Open 2019"]
[Site "Ostrava"]
[Date "2019.05.02"]
[Round "6.11"]
[White "Pulpan, Jakub"]
[Black "Kulhanek, Tomas"]
[Result "1/2-1/2"]
[ECO "C15"]
[WhiteElo "2418"]
[BlackElo "2316"]
[Annotator "NA"]
[PlyCount "68"]
[EventDate "2019.04.27"]
[EventType "swiss"]
[EventCountry "CZE"]
[SourceTitle "playchess.com"]
[Source "ChessBase"]
[SourceQuality "1"]
[TimeControl "40/5400+30:1800+30"]

1. e4 e6 2. d4 d5 3. Nc3 Bb4 4. Nge2 dxe4 5. a3 Bxc3+ 6. Nxc3 Nc6 7. Bb5 Nge7 8. Nxe4 O-O 9. c3 Qd5 10. Bxc6 Nxc6 11. Qf3 f5 12. Nd2 Qd7 13. O-O e5 14. dxe5 Nxe5 15. Qe3 Ng4 16. Qf4 b6 17. f3 Nf6 18. Re1 Ba6 19. Nf1 Nd5 20. Qh4 Rae8 21. Bd2 Bxf1 22. Rxe8 Rxe8 23. Rxf1 Re2 24. Rf2 Rxf2 25. Qxf2 h6 26. h4 Qa4 27. Qe2 Nf4 28. Qe1 Qc4 29. Kh2 Ne2 30. Be3 f4 31. Bf2 Qd3 32. a4 Qc2 33. Qa1 Nxc3 34. Bxb6 cxb6 1/2-1/2

[Event "CZE-ch Open 2019"]
[Site "Ostrava"]
[Date "2019.05.02"]
[Round "6.12"]
[White "Worek, Joanna"]
[Black "Roubalik, Jakub"]
[Result "1/2-1/2"]
[ECO "C02"]
[WhiteElo "2299"]
[BlackElo "2417"]
[Annotator "NA"]
[PlyCount "68"]
[EventDate "2019.04.27"]
[EventType "swiss"]
[EventCountry "CZE"]
[SourceTitle "playchess.com"]
[Source "ChessBase"]
[SourceQuality "1"]
[TimeControl "40/5400+30:1800+30"]

1. e4 {[%emt 0:00:00]} e6 {[%emt 0:00:00]} 2. d4 {[%emt 0:00:00]} d5 {[%emt 0:00:00]} 3. e5 {[%emt 0:00:00]} c5 {[%emt 0:00:00]} 4. c3 {[%emt 0:00:00]} Nc6 {[%emt 0:00:00]} 5. Nf3 {[%emt 0:00:00]} Qb6 {[%emt 0:00:03]} 6. a3 {[%emt 0:00:00]} Nge7 {[%emt 0:00:41]} 7. b4 {[%emt 0:02:20]} cxd4 {[%emt 0:00:09]} 8. cxd4 {[%emt 0:00:04]} Nf5 {[%emt 0:00:19]} 9. Be3 {[%emt 0:00:25]} f6 {[%emt 0:00:57]} 10. b5 {[%emt 0:01:32]} Nxe3 {[%emt 0:09:37]} 11. fxe3 {[%emt 0:00:07]} Ne7 {[%emt 0:01:13]} 12. Bd3 {[%emt 0:01:51]} Bd7 {[%emt 0:09:37]} 13. Qe2 {[%emt 0:02:01]} Nf5 {[%emt 0:02:07]} 14. O-O {[%emt 0:02:52]} Be7 {[%emt 0:01:17]} 15. Nbd2 {[%emt 0:04:50]} Nh6 {[%emt 0:24:35]} 16. a4 {[%emt 0:06:08]} O-O {[%emt 0:02:05]} 17. a5 {[%emt 0:02:07]} Qd8 {[%emt 0:00:08]} 18. Nb3 {[%emt 0:10:18]} Rc8 {[%emt 0:07:05]} 19. Rac1 {[%emt 0:09:26]} Nf7 {[%emt 0:04:04]} 20. Rxc8 {[%emt 0:13:00]} Bxc8 {[%emt 0:00:26]} 21. Qc2 {[%emt 0:03:44]} g6 {[%emt 0:15:45]} 22. Nfd2 {[%emt 0:17:52]} Kg7 {[%emt 0:14:16]} 23. Nf3 {[%emt 0:00:28]} fxe5 {[%emt 0:00:39]} 24. dxe5 {[%emt 0:00:16]} Ng5 {[%emt 0:00:34]} 25. Nfd4 {[%emt 0:00:51]} Rxf1+ {[%emt 0:00:34]} 26. Bxf1 {[%emt 0:00:05]} Nf7 {[%emt 0:01:51]} 27. Qc3 {[%emt 0:00:57]} Nxe5 {[%emt 0:02:03]} 28. Nxe6+ {[%emt 0:00:43]} Bxe6 {[%emt 0:00:06]} 29. Qxe5+ {[%emt 0:00:10]} Kf7 {[%emt 0:00:10]} 30. Nd4 {[%emt 0:01:58]} Qc8 {[%emt 0:02:57]} 31. a6 {[%emt 0:09:38]} bxa6 {[%emt 0:00:10]} 32. bxa6 {[%emt 0:01:17]} Bf6 {[%emt 0:01:51]} 33. Qxe6+ {[%emt 0:05:10]} Qxe6 {[%emt 0:00:06]} 34. Nxe6 {[%emt 0:00:05]} Kxe6 {[%emt 0:00:08]} 1/2-1/2

[Event "CZE-ch Open 2019"]
[Site "Ostrava"]
[Date "2019.05.02"]
[Round "6.13"]
[White "Miesbauer, Jan"]
[Black "Serrano Salvador, Eduardo"]
[Result "1/2-1/2"]
[ECO "D11"]
[WhiteElo "2402"]
[BlackElo "2305"]
[Annotator "NA"]
[PlyCount "130"]
[EventDate "2019.04.27"]
[EventType "swiss"]
[EventCountry "CZE"]
[SourceTitle "playchess.com"]
[Source "ChessBase"]
[SourceQuality "1"]
[TimeControl "40/5400+30:1800+30"]

1. d4 {[%emt 0:00:00]} d5 {[%emt 0:00:00]} 2. c4 {[%emt 0:00:00]} c6 {[%emt 0:00:00]} 3. Nf3 {[%emt 0:00:00]} Nf6 {[%emt 0:00:12]} 4. Qc2 {[%emt 0:00:14]} dxc4 {[%emt 0:00:34]} 5. Qxc4 {[%emt 0:00:48]} Bf5 {[%emt 0:00:08]} 6. g3 {[%emt 0:00:42]} e6 {[%emt 0:01:09]} 7. Bg2 {[%emt 0:00:16]} Nbd7 {[%emt 0:00:51]} 8. O-O {[%emt 0:00:29]} Be7 {[%emt 0:00:26]} 9. Nc3 {[%emt 0:00:49]} O-O {[%emt 0:01:27]} 10. Nh4 {[%emt 0:05:45]} Bg4 {[%emt 0:01:03]} 11. h3 {[%emt 0:01:25]} Bh5 {[%emt 0:00:29]} 12. e4 {[%emt 0:04:39]} Nb6 {[%emt 0:03:17]} 13. Qd3 {[%emt 0:01:07]} Nfd7 {[%emt 0:01:02]} 14. Nf3 {[%emt 0:01:49]} Bg6 {[%emt 0:06:50]} 15. Be3 {[%emt 0:04:02]} Nd5 {[%emt 0:03:59]} 16. Rad1 {[%emt 0:05:12]} Qa5 {[%emt 0:07:26]} 17. Nd2 {[%emt 0:01:28]} Nxe3 {[%emt 0:00:34]} 18. Qxe3 {[%emt 0:00:11]} Rfe8 {[%emt 0:04:02]} 19. f4 {[%emt 0:03:23]} h6 {[%emt 0:03:12]} 20. Kh1 {[%emt 0:05:43]} Rad8 {[%emt 0:03:53]} 21. a3 {[%emt 0:02:35]} Qb6 {[%emt 0:10:07]} 22. b4 {[%emt 0:06:16]} Qa6 {[%emt 0:02:53]} 23. Ra1 {[%emt 0:05:02]} Nb6 {[%emt 0:04:40]} 24. Rfc1 {[%emt 0:00:44]} Nc8 {[%emt 0:06:42]} 25. e5 {[%emt 0:03:32]} Qd3 {[%emt 0:01:46]} 26. Qxd3 {[%emt 0:01:21]} Bxd3 {[%emt 0:00:02]} 27. Nb3 {[%emt 0:00:24]} Nb6 {[%emt 0:03:33]} 28. Nc5 {[%emt 0:05:52]} Bxc5 {[%emt 0:00:32]} 29. dxc5 {[%emt 0:00:48]} Nd5 {[%emt 0:01:22]} 30. Bxd5 {[%emt 0:00:58]} exd5 {[%emt 0:00:16]} 31. Rd1 {[%emt 0:01:53]} Bc4 {[%emt 0:01:05]} 32. Re1 {[%emt 0:07:16]} f6 {[%emt 0:01:38]} 33. exf6 {[%emt 0:00:15]} gxf6 {[%emt 0:00:13]} 34. Kg1 {[%emt 0:00:56]} Kf7 {[%emt 0:03:55]} 35. Kf2 {[%emt 0:00:34]} h5 {[%emt 0:02:13]} 36. Rxe8 {[%emt 0:01:33]} Rxe8 {[%emt 0:00:10]} 37. Re1 {[%emt 0:00:08]} Rb8 {[%emt 0:03:22]} 38. Ke3 {[%emt 0:05:56]} Rg8 {[%emt 0:01:44]} 39. Kf2 {[%emt 0:02:01]} b5 {[%emt 0:07:00]} 40. Ne2 {[%emt 0:06:33]} Bxe2 {[%emt 0:00:39]} 41. Rxe2 {[%emt 0:30:44]} a5 {[%emt 0:36:51]} 42. bxa5 {[%emt 0:01:09]} Ra8 {[%emt 0:00:35]} 43. f5 {[%emt 0:00:10]} Rxa5 {[%emt 0:00:15]} 44. Re6 {[%emt 0:00:06]} Ra6 {[%emt 0:00:29]} 45. h4 {[%emt 0:03:04]} d4 {[%emt 0:00:00]} 46. Rd6 {[%emt 0:00:00]} Rxa3 {[%emt 0:00:00]} 47. Rxc6 {[%emt 0:00:00]} Rc3 {[%emt 0:00:00]} 48. Rc7+ {[%emt 0:00:00]} Ke8 {[%emt 0:00:00]} 49. c6 {[%emt 0:00:00]} Rc5 {[%emt 0:00:00]} 50. Rd7 {[%emt 0:00:00]} Rxc6 {[%emt 0:00:00]} 51. Rxd4 {[%emt 0:00:00]} Rc5 {[%emt 0:00:00]} 52. Rf4 {[%emt 0:00:00]} Re5 {[%emt 0:00:00]} 53. g4 {[%emt 0:00:00]} hxg4 {[%emt 0:00:00]} 54. Kg3 {[%emt 0:00:00]} Rc5 {[%emt 0:00:00]} 55. Kxg4 {[%emt 0:00:00]} Kf7 {[%emt 0:00:00]} 56. Rd4 {[%emt 0:00:00]} Rc7 {[%emt 0:00:00]} 57. Rb4 {[%emt 0:00:00]} Rb7 {[%emt 0:00:00]} 58. Kf3 {[%emt 0:00:00]} Kg7 {[%emt 0:00:00]} 59. Ke4 {[%emt 0:00:00]} Kh6 {[%emt 0:00:00]} 60. Kd5 {[%emt 0:00:00]} Kh5 {[%emt 0:00:00]} 61. Ke6 {[%emt 0:00:00]} Rb6+ {[%emt 0:00:00]} 62. Ke7 {[%emt 0:00:00]} Kh6 {[%emt 0:00:00]} 63. Kf7 {[%emt 0:00:00]} Kh7 {[%emt 0:00:00]} 64. Ke7 {[%emt 0:00:00]} Kh6 {[%emt 0:00:00]} 65. Kf7 {[%emt 0:00:00]} Kh7 {[%emt 0:00:00]} 1/2-1/2

[Event "CZE-ch Open 2019"]
[Site "Ostrava"]
[Date "2019.05.02"]
[Round "6.14"]
[White "Mrazek, Lumir"]
[Black "Ludvik, Tomas"]
[Result "1-0"]
[ECO "B57"]
[WhiteElo "2364"]
[BlackElo "2222"]
[Annotator "NA"]
[PlyCount "47"]
[EventDate "2019.04.27"]
[EventType "swiss"]
[EventCountry "CZE"]
[SourceTitle "playchess.com"]
[Source "ChessBase"]
[SourceQuality "1"]
[TimeControl "40/5400+30:1800+30"]

1. e4 {[%emt 0:00:00]} c5 {[%emt 0:00:00]} 2. Nf3 {[%emt 0:00:00]} d6 {[%emt 0:00:03]} 3. d4 {[%emt 0:00:04]} cxd4 {[%emt 0:00:04]} 4. Nxd4 {[%emt 0:00:06]} Nf6 {[%emt 0:00:29]} 5. Nc3 {[%emt 0:00:06]} Nc6 {[%emt 0:01:44]} 6. Bc4 {[%emt 0:05:10]} Qb6 {[%emt 0:00:20]} 7. Nxc6 {[%emt 0:01:40]} bxc6 {[%emt 0:00:16]} 8. O-O {[%emt 0:04:38]} g6 {[%emt 0:01:50]} 9. Qe2 {[%emt 0:04:08]} Bg7 {[%emt 0:06:21]} 10. e5 {[%emt 0:00:52]} dxe5 {[%emt 0:01:35]} 11. Qxe5 {[%emt 0:00:13]} O-O {[%emt 0:00:49]} 12. Qxe7 {[%emt 0:01:29]} Bf5 {[%emt 0:00:53]} 13. Bb3 {[%emt 0:04:46]} Rae8 {[%emt 0:02:43]} 14. Qd6 {[%emt 0:10:19]} Ng4 {[%emt 0:06:00]} 15. Bf4 {[%emt 0:04:58]} Bd4 {[%emt 0:15:58]} 16. Bg3 {[%emt 0:07:17]} Rd8 {[%emt 0:06:11]} 17. Qf4 {[%emt 0:02:49]} Rfe8 {[%emt 0:11:03]} 18. Rad1 {[%emt 0:04:53]} a5 {[%emt 0:05:36]} 19. h3 {[%emt 0:03:47]} Ne5 {[%emt 0:12:54]} 20. Na4 {[%emt 0:14:41]} Qa7 {[%emt 0:00:26]} 21. Qh4 {[%emt 0:00:50]} Bb6 {[%emt 0:08:52]} 22. Nxb6 {[%emt 0:00:38]} Rxd1 {[%emt 0:00:11]} 23. Rxd1 {[%emt 0:00:10]} Qxb6 {[%emt 0:00:04]} 24. Bxe5 {[%emt 0:00:18]} 1-0

[Event "CZE-ch Open 2019"]
[Site "Ostrava"]
[Date "2019.05.02"]
[Round "6.15"]
[White "Vrana, Frantisek"]
[Black "Jasny, Stanislav"]
[Result "0-1"]
[ECO "B08"]
[WhiteElo "2267"]
[BlackElo "2347"]
[Annotator "NA"]
[PlyCount "115"]
[EventDate "2019.04.27"]
[EventType "swiss"]
[EventCountry "CZE"]
[SourceTitle "playchess.com"]
[Source "ChessBase"]
[SourceQuality "1"]
[TimeControl "40/5400+30:1800+30"]

1. e4 {[%emt 0:00:00]} g6 {[%emt 0:00:07]} 2. d4 {[%emt 0:00:23]} Bg7 {[%emt 0:00:08]} 3. Nc3 {[%emt 0:00:27]} d6 {[%emt 0:00:22]} 4. Be2 {[%emt 0:03:00]} Nf6 {[%emt 0:01:34]} 5. Nf3 {[%emt 0:00:19]} O-O {[%emt 0:00:17]} 6. O-O {[%emt 0:01:43]} Nc6 {[%emt 0:05:55]} 7. Bg5 {[%emt 0:03:54]} h6 {[%emt 0:02:48]} 8. Bh4 {[%emt 0:01:56]} g5 {[%emt 0:02:18]} 9. Bg3 {[%emt 0:00:13]} Nh5 {[%emt 0:01:10]} 10. d5 {[%emt 0:03:57]} Nxg3 {[%emt 0:00:39]} 11. hxg3 {[%emt 0:00:26]} Ne5 {[%emt 0:03:01]} 12. Nxe5 {[%emt 0:00:22]} Bxe5 {[%emt 0:01:12]} 13. Bg4 {[%emt 0:00:43]} c6 {[%emt 0:05:06]} 14. Bxc8 {[%emt 0:02:18]} Rxc8 {[%emt 0:04:41]} 15. Qh5 {[%emt 0:00:49]} Kg7 {[%emt 0:01:45]} 16. Nd1 {[%emt 0:01:23]} e6 {[%emt 0:04:07]} 17. c3 {[%emt 0:04:58]} Qb6 {[%emt 0:05:44]} 18. Kh2 {[%emt 0:03:05]} cxd5 {[%emt 0:04:28]} 19. f4 {[%emt 0:01:17]} Bf6 {[%emt 0:02:03]} 20. exd5 {[%emt 0:01:37]} gxf4 {[%emt 0:26:13]} 21. Rxf4 {[%emt 0:05:48]} Bg5 {[%emt 0:01:34]} 22. Rb4 {[%emt 0:01:32]} Qc5 {[%emt 0:06:20]} 23. Qf3 {[%emt 0:15:21]} b6 {[%emt 0:02:42]} 24. Nf2 {[%emt 0:03:03]} Qxd5 {[%emt 0:00:15]} 25. Qxd5 {[%emt 0:00:10]} exd5 {[%emt 0:00:05]} 26. Nd3 {[%emt 0:00:40]} Rfe8 {[%emt 0:01:52]} 27. Rd4 {[%emt 0:01:20]} Re2 {[%emt 0:01:15]} 28. Rxd5 {[%emt 0:03:44]} Rce8 {[%emt 0:00:35]} 29. Rf1 {[%emt 0:00:17]} Rd2 {[%emt 0:02:30]} 30. Rf2 {[%emt 0:00:12]} Rxf2 {[%emt 0:00:10]} 31. Nxf2 {[%emt 0:00:05]} Re2 {[%emt 0:00:08]} 32. Nd3 {[%emt 0:00:08]} Be7 {[%emt 0:00:36]} 33. a4 {[%emt 0:02:22]} Rd2 {[%emt 0:00:26]} 34. b3 {[%emt 0:00:39]} Rc2 {[%emt 0:00:45]} 35. c4 {[%emt 0:02:51]} Rc3 {[%emt 0:01:06]} 36. Nb4 {[%emt 0:04:10]} Rxb3 {[%emt 0:00:35]} 37. Nc6 {[%emt 0:00:05]} Bf6 {[%emt 0:00:33]} 38. Rxd6 {[%emt 0:01:24]} Rc3 {[%emt 0:04:21]} 39. Nxa7 {[%emt 0:02:56]} Be5 {[%emt 0:01:35]} 40. Nb5 {[%emt 0:00:14]} Rxc4 {[%emt 0:08:06]} 41. Rxb6 {[%emt 0:31:04]} Rh4+ {[%emt 0:02:17]} 42. Kg1 {[%emt 0:00:00]} Rxa4 {[%emt 0:00:04]} 43. Kf2 {[%emt 0:00:00]} Rb4 {[%emt 0:04:56]} 44. Rb7 {[%emt 0:00:00]} h5 {[%emt 0:01:13]} 45. Kf3 {[%emt 0:00:00]} Kg6 {[%emt 0:00:22]} 46. Rb6+ {[%emt 0:00:00]} Kg5 {[%emt 0:00:44]} 47. Rb7 {[%emt 0:00:00]} f5 {[%emt 0:00:22]} 48. Rb6 {[%emt 0:00:00]} Rb3+ {[%emt 0:00:47]} 49. Ke2 {[%emt 0:00:00]} Bxg3 {[%emt 0:03:07]} 50. Rb7 {[%emt 0:00:00]} Rb2+ {[%emt 0:01:26]} 51. Kf3 {[%emt 0:00:00]} h4 {[%emt 0:09:25]} 52. Nd6 {[%emt 0:00:00]} Rf2+ {[%emt 0:00:29]} 53. Ke3 {[%emt 0:00:00]} Rxg2 {[%emt 0:01:22]} 54. Rg7+ {[%emt 0:00:00]} Kf6 {[%emt 0:00:16]} 55. Ne8+ {[%emt 0:00:00]} Ke6 {[%emt 0:01:47]} 56. Nc7+ {[%emt 0:00:00]} Ke5 {[%emt 0:00:15]} 57. Rh7 {[%emt 0:00:00]} Rb2 {[%emt 0:02:47]} 58. Rh6 0-1

[Event "CZE-ch Open 2019"]
[Site "Ostrava"]
[Date "2019.05.02"]
[Round "6.16"]
[White "Blatny, Pavel"]
[Black "Freisler, Pavel"]
[Result "1-0"]
[ECO "A00"]
[WhiteElo "2326"]
[BlackElo "2245"]
[Annotator "NA"]
[PlyCount "59"]
[EventDate "2019.04.27"]
[EventType "swiss"]
[EventCountry "CZE"]
[SourceTitle "playchess.com"]
[Source "ChessBase"]
[SourceQuality "1"]
[TimeControl "40/5400+30:1800+30"]

1. e3 {[%emt 0:04:37]} d5 {[%emt 0:01:29]} 2. b3 {[%emt 0:00:26]} Nf6 {[%emt 0:00:52]} 3. Bb2 {[%emt 0:00:02]} g6 {[%emt 0:00:06]} 4. f4 {[%emt 0:00:52]} Bg7 {[%emt 0:01:09]} 5. Be2 {[%emt 0:00:15]} c5 {[%emt 0:01:01]} 6. Nf3 {[%emt 0:00:06]} O-O {[%emt 0:00:23]} 7. O-O {[%emt 0:00:17]} Nc6 {[%emt 0:00:31]} 8. Ne5 {[%emt 0:00:04]} Nxe5 {[%emt 0:02:40]} 9. Bxe5 {[%emt 0:00:02]} Ne8 {[%emt 0:04:56]} 10. Bxg7 {[%emt 0:00:09]} Nxg7 {[%emt 0:00:06]} 11. g4 {[%emt 0:00:30]} e5 {[%emt 0:03:23]} 12. Qe1 {[%emt 0:01:13]} exf4 {[%emt 0:03:53]} 13. exf4 {[%emt 0:00:47]} Re8 {[%emt 0:14:41]} 14. Qf2 {[%emt 0:00:17]} Qe7 {[%emt 0:02:12]} 15. Bf3 {[%emt 0:01:54]} Be6 {[%emt 0:01:11]} 16. Nc3 {[%emt 0:01:06]} Rad8 {[%emt 0:01:41]} 17. Rae1 {[%emt 0:00:24]} Qd6 {[%emt 0:07:25]} 18. Be2 {[%emt 0:07:17]} Bd7 {[%emt 0:16:12]} 19. Qh4 {[%emt 0:08:00]} Bc6 {[%emt 0:04:21]} 20. f5 {[%emt 0:05:11]} d4 {[%emt 0:03:55]} 21. fxg6 {[%emt 0:03:42]} fxg6 {[%emt 0:00:17]} 22. Rf6 {[%emt 0:04:40]} Qd7 {[%emt 0:02:10]} 23. Bc4+ {[%emt 0:01:20]} Kh8 {[%emt 0:00:01]} 24. Ne2 {[%emt 0:01:19]} Qe7 {[%emt 0:15:55]} 25. Ref1 {[%emt 0:08:47]} Qe4 {[%emt 0:02:58]} 26. Qh3 {[%emt 0:09:15]} d3 {[%emt 0:03:26]} 27. Bxd3 {[%emt 0:00:29]} Qd5 {[%emt 0:03:33]} 28. Bxg6 {[%emt 0:02:37]} Qg2+ {[%emt 0:02:12]} 29. Qxg2 {[%emt 0:00:10]} Bxg2 {[%emt 0:00:01]} 30. Bxe8 {[%emt 0:00:15]} 1-0